[Event "Late-Titled-Tuesday-Blitz-April-30-2024"]
[Site "Chess.com"]
[Date "2024.04.30"]
[Round "2"]
[White "margarita_2703"]
[Black "VD_coach"]
[Result "0-1"]
[WhiteElo "2318"]
[BlackElo "2527"]
[TimeControl "180+1"]
[EndTime "14:16:14 PDT"]
[Termination "VD_coach won by resignation"]

1. e4 {[%clk 0:03:00.9]} 1... c5 {[%clk 0:02:53.9]} 2. Nf3 {[%clk 0:03:00.5]}
2... d6 {[%clk 0:02:52.4]} 3. d4 {[%clk 0:03:00.2]} 3... cxd4 {[%clk 0:02:50]}
4. Qxd4 {[%clk 0:03:01.1]} 4... a6 {[%clk 0:02:48.2]} 5. Be3 {[%clk 0:02:59.7]}
5... e6 {[%clk 0:02:48.4]} 6. c4 {[%clk 0:02:58.3]} 6... Nf6 {[%clk 0:02:48.5]}
7. Nc3 {[%clk 0:02:57.8]} 7... Be7 {[%clk 0:02:47.2]} 8. Qd2 {[%clk 0:02:58.7]}
8... Ng4 {[%clk 0:02:37.4]} 9. Bd4 {[%clk 0:02:56.8]} 9... e5 {[%clk 0:02:32.5]}
10. Be3 {[%clk 0:02:57]} 10... Nxe3 {[%clk 0:02:32.4]} 11. Qxe3 {[%clk
0:02:57.9]} 11... O-O {[%clk 0:02:32.3]} 12. Bd3 {[%clk 0:02:52.5]} 12... Nd7
{[%clk 0:02:32.2]} 13. Rd1 {[%clk 0:02:47.9]} 13... Nc5 {[%clk 0:02:30.9]} 14.
Bc2 {[%clk 0:02:48.1]} 14... Be6 {[%clk 0:02:31.2]} 15. b3 {[%clk 0:02:48]}
15... Qa5 {[%clk 0:02:25.4]} 16. O-O {[%clk 0:02:44.9]} 16... Rac8 {[%clk
0:02:25.3]} 17. Nd5 {[%clk 0:02:41.2]} 17... Bxd5 {[%clk 0:02:22.1]} 18. exd5
{[%clk 0:02:42.1]} 18... f5 {[%clk 0:02:17.7]} 19. Bb1 {[%clk 0:02:32.3]} 19...
h6 {[%clk 0:01:46.1]} 20. Nd4 {[%clk 0:02:30.8]} 20... Bg5 {[%clk 0:01:30.9]}
21. f4 {[%clk 0:02:24.3]} 21... exd4 {[%clk 0:01:29.7]} 22. Qxd4 {[%clk
0:02:16.1]} 22... Bf6 {[%clk 0:01:29.8]} 23. Qf2 {[%clk 0:02:10.1]} 23... Ne4
{[%clk 0:01:29.9]} 24. Qf3 {[%clk 0:02:07.1]} 24... Rfe8 {[%clk 0:01:29.3]} 25.
g4 {[%clk 0:02:06]} 25... Nd2 {[%clk 0:01:09]} 26. Qd3 {[%clk 0:01:58.3]} 26...
Nxf1 {[%clk 0:01:08.6]} 27. Qxf5 {[%clk 0:01:58.9]} 27... Ne3 {[%clk 0:01:04.3]}
28. Qh7+ {[%clk 0:01:56.9]} 28... Kf7 {[%clk 0:00:56.2]} 29. Bg6+ {[%clk
0:01:52.7]} 29... Ke7 {[%clk 0:00:56.3]} 30. Bxe8 {[%clk 0:01:51.9]} 30... Rxe8
{[%clk 0:00:57.2]} 31. g5 {[%clk 0:01:40.3]} 31... Nxd1 {[%clk 0:00:50.6]} 32.
gxf6+ {[%clk 0:01:40.4]} 32... Kxf6 {[%clk 0:00:51.5]} 33. Qd3 {[%clk
0:01:32.1]} 33... Qe1+ {[%clk 0:00:51.1]} 34. Kg2 {[%clk 0:01:32]} 34... Qe2+
{[%clk 0:00:51]} 0-1

[Event "Late-Titled-Tuesday-Blitz-April-30-2024"]
[Site "Chess.com"]
[Date "2024.04.30"]
[Round "2"]
[White "RuperezA"]
[Black "GM_dmitrij"]
[Result "0-1"]
[WhiteElo "2613"]
[BlackElo "2973"]
[TimeControl "180+1"]
[EndTime "14:16:27 PDT"]
[Termination "GM_dmitrij won by resignation"]

1. e4 {[%clk 0:03:00.9]} 1... c5 {[%clk 0:02:58.9]} 2. Nf3 {[%clk 0:03:00.2]}
2... d6 {[%clk 0:02:56.5]} 3. Bb5+ {[%clk 0:03:00.1]} 3... Bd7 {[%clk
0:02:53.8]} 4. Bxd7+ {[%clk 0:02:59.6]} 4... Qxd7 {[%clk 0:02:54.6]} 5. c4
{[%clk 0:02:58]} 5... Nf6 {[%clk 0:02:50.9]} 6. Nc3 {[%clk 0:02:57.8]} 6... g6
{[%clk 0:02:51.5]} 7. d4 {[%clk 0:02:57.6]} 7... cxd4 {[%clk 0:02:52.4]} 8. Nxd4
{[%clk 0:02:58.3]} 8... Bg7 {[%clk 0:02:53.3]} 9. f3 {[%clk 0:02:57.3]} 9... O-O
{[%clk 0:02:52.9]} 10. Be3 {[%clk 0:02:56]} 10... Nc6 {[%clk 0:02:52.5]} 11. Rc1
{[%clk 0:02:49]} 11... Rfc8 {[%clk 0:02:47.7]} 12. b3 {[%clk 0:02:42.7]} 12...
a6 {[%clk 0:02:48.1]} 13. a4 {[%clk 0:02:39.8]} 13... Qd8 {[%clk 0:02:43.8]} 14.
O-O {[%clk 0:02:37.7]} 14... Nd7 {[%clk 0:02:44.4]} 15. Nxc6 {[%clk 0:02:31]}
15... bxc6 {[%clk 0:02:44.3]} 16. a5 {[%clk 0:02:29.5]} 16... Rab8 {[%clk
0:02:41.9]} 17. f4 {[%clk 0:01:58.7]} 17... Qxa5 {[%clk 0:02:33.2]} 18. e5
{[%clk 0:01:57.8]} 18... Nc5 {[%clk 0:02:33.1]} 19. exd6 {[%clk 0:01:21.2]}
19... Bxc3 {[%clk 0:02:31]} 20. dxe7 {[%clk 0:01:14.3]} 20... Bf6 {[%clk
0:02:19.6]} 21. Qd6 {[%clk 0:01:06.9]} 21... Ne4 {[%clk 0:02:19.9]} 22. Qd7
{[%clk 0:00:54.5]} 22... Qf5 {[%clk 0:02:15.5]} 23. Qa7 {[%clk 0:00:42.1]} 23...
Ra8 {[%clk 0:02:09.9]} 24. Qb7 {[%clk 0:00:41.6]} 24... Qe6 {[%clk 0:02:06.3]}
25. Rce1 {[%clk 0:00:31.5]} 25... Qxe7 {[%clk 0:02:05.7]} 26. Qb6 {[%clk
0:00:30.8]} 26... Bc3 {[%clk 0:01:57.4]} 27. Re2 {[%clk 0:00:24.9]} 27... Qb4
{[%clk 0:01:53.4]} 28. Qxb4 {[%clk 0:00:19.3]} 28... Bxb4 {[%clk 0:01:54.3]} 29.
f5 {[%clk 0:00:19.6]} 29... Re8 {[%clk 0:01:52.7]} 30. fxg6 {[%clk 0:00:19.8]}
30... hxg6 {[%clk 0:01:53.6]} 31. Bd4 {[%clk 0:00:19.3]} 31... Nc3 {[%clk
0:01:50.4]} 32. Rxe8+ {[%clk 0:00:15]} 32... Rxe8 {[%clk 0:01:51.3]} 0-1

[Event "Late-Titled-Tuesday-Blitz-April-30-2024"]
[Site "Chess.com"]
[Date "2024.04.30"]
[Round "2"]
[White "WindWhistler11"]
[Black "Nechitaylo_Nikita"]
[Result "1-0"]
[WhiteElo "2557"]
[BlackElo "2356"]
[TimeControl "180+1"]
[EndTime "14:16:28 PDT"]
[Termination "WindWhistler11 won on time"]

1. Nf3 {[%clk 0:02:55.9]} 1... c5 {[%clk 0:02:59.6]} 2. g3 {[%clk 0:02:54.1]}
2... Nc6 {[%clk 0:02:57.6]} 3. Bg2 {[%clk 0:02:53.7]} 3... g6 {[%clk 0:02:58.2]}
4. O-O {[%clk 0:02:53.2]} 4... Bg7 {[%clk 0:02:58.8]} 5. d3 {[%clk 0:02:52.3]}
5... d6 {[%clk 0:02:59.1]} 6. Nbd2 {[%clk 0:02:52.4]} 6... e5 {[%clk 0:02:59.3]}
7. e4 {[%clk 0:02:52.5]} 7... Nge7 {[%clk 0:02:59.5]} 8. c3 {[%clk 0:02:50.7]}
8... O-O {[%clk 0:02:59.6]} 9. a4 {[%clk 0:02:49.8]} 9... a6 {[%clk 0:02:57.4]}
10. Nc4 {[%clk 0:02:48.6]} 10... Be6 {[%clk 0:02:46.8]} 11. Ng5 {[%clk
0:02:44.3]} 11... b5 {[%clk 0:02:01.6]} 12. Nxe6 {[%clk 0:02:35.5]} 12... fxe6
{[%clk 0:02:02.5]} 13. Nd2 {[%clk 0:02:19.8]} 13... d5 {[%clk 0:01:41.9]} 14.
Nf3 {[%clk 0:02:08.7]} 14... d4 {[%clk 0:01:00.9]} 15. axb5 {[%clk 0:01:59.7]}
15... axb5 {[%clk 0:01:01.8]} 16. Rxa8 {[%clk 0:01:59.7]} 16... Qxa8 {[%clk
0:01:02]} 17. Qb3 {[%clk 0:01:56.9]} 17... c4 {[%clk 0:00:21.5]} 18. Qxb5 {[%clk
0:01:44.8]} 18... cxd3 {[%clk 0:00:06.5]} 19. Qxd3 {[%clk 0:01:44.1]} 19... Rd8
{[%clk 0:00:03.4]} 20. Qc4 {[%clk 0:01:41.1]} 20... Rd6 {[%clk 0:00:04]} 21. Ng5
{[%clk 0:01:37.9]} 21... Na5 {[%clk 0:00:03.2]} 22. Qa2 {[%clk 0:01:37.3]} 1-0

[Event "Late-Titled-Tuesday-Blitz-April-30-2024"]
[Site "Chess.com"]
[Date "2024.04.30"]
[Round "2"]
[White "TigrVShlyape"]
[Black "DucksParadise"]
[Result "1-0"]
[WhiteElo "2925"]
[BlackElo "2594"]
[TimeControl "180+1"]
[EndTime "14:16:30 PDT"]
[Termination "TigrVShlyape won by resignation"]

1. d4 {[%clk 0:03:00.9]} 1... d5 {[%clk 0:02:59.2]} 2. Bf4 {[%clk 0:03:00.6]}
2... Nf6 {[%clk 0:02:58.9]} 3. e3 {[%clk 0:03:00.8]} 3... c5 {[%clk 0:02:59.6]}
4. Nf3 {[%clk 0:02:57.2]} 4... Nc6 {[%clk 0:02:59.6]} 5. Nbd2 {[%clk 0:02:57]}
5... Nh5 {[%clk 0:02:59]} 6. dxc5 {[%clk 0:02:52.2]} 6... Nxf4 {[%clk
0:02:57.4]} 7. exf4 {[%clk 0:02:52.5]} 7... e6 {[%clk 0:02:57.2]} 8. Nb3 {[%clk
0:02:48.9]} 8... Bxc5 {[%clk 0:02:56.9]} 9. Nxc5 {[%clk 0:02:48.4]} 9... Qa5+
{[%clk 0:02:57.2]} 10. c3 {[%clk 0:02:47.6]} 10... Qxc5 {[%clk 0:02:57.6]} 11.
Bd3 {[%clk 0:02:45.3]} 11... h6 {[%clk 0:02:43.6]} 12. O-O {[%clk 0:02:44.1]}
12... O-O {[%clk 0:02:43.8]} 13. Re1 {[%clk 0:02:43.8]} 13... b6 {[%clk
0:02:39.6]} 14. Qd2 {[%clk 0:02:38.7]} 14... a5 {[%clk 0:02:39.3]} 15. Rad1
{[%clk 0:02:37.8]} 15... Ba6 {[%clk 0:02:39]} 16. Bb1 {[%clk 0:02:37.8]} 16...
Ne7 {[%clk 0:02:35.6]} 17. h4 {[%clk 0:02:35.7]} 17... h5 {[%clk 0:02:11.1]} 18.
Nd4 {[%clk 0:02:22.9]} 18... g6 {[%clk 0:02:07.9]} 19. Qe3 {[%clk 0:02:16.9]}
19... Rfe8 {[%clk 0:01:57.9]} 20. Qg3 {[%clk 0:02:15.2]} 20... Qc7 {[%clk
0:01:51.3]} 21. Re5 {[%clk 0:02:13.3]} 21... Nf5 {[%clk 0:01:14.7]} 22. Bxf5
{[%clk 0:01:59.9]} 22... exf5 {[%clk 0:01:15.6]} 23. Rxf5 {[%clk 0:01:57.3]}
23... Rad8 {[%clk 0:01:09.5]} 24. Rxh5 {[%clk 0:01:55.8]} 24... Re4 {[%clk
0:01:06.5]} 25. Re5 {[%clk 0:01:53.7]} 25... Re8 {[%clk 0:01:03.6]} 26. Rxe8+
{[%clk 0:01:52.8]} 26... Rxe8 {[%clk 0:01:03.6]} 27. h5 {[%clk 0:01:51.7]} 27...
Qd6 {[%clk 0:00:56.4]} 28. Qg5 {[%clk 0:01:38.3]} 28... Re4 {[%clk 0:00:48.8]}
29. hxg6 {[%clk 0:01:37.7]} 29... Qxg6 {[%clk 0:00:46.9]} 30. Qxd5 {[%clk
0:01:27.7]} 1-0

[Event "Late-Titled-Tuesday-Blitz-April-30-2024"]
[Site "Chess.com"]
[Date "2024.04.30"]
[Round "2"]
[White "CMButgood"]
[Black "Langua_Chess"]
[Result "1-0"]
[WhiteElo "2093"]
[BlackElo "2415"]
[TimeControl "180+1"]
[EndTime "14:16:31 PDT"]
[Termination "CMButgood won on time"]

1. e4 {[%clk 0:02:59.2]} 1... c5 {[%clk 0:02:59.8]} 2. Nf3 {[%clk 0:02:59.7]}
2... Nc6 {[%clk 0:03:00.2]} 3. d4 {[%clk 0:03:00.6]} 3... cxd4 {[%clk
0:03:01.1]} 4. Nxd4 {[%clk 0:03:01.5]} 4... Nf6 {[%clk 0:03:00.8]} 5. Nc3 {[%clk
0:03:01.9]} 5... e5 {[%clk 0:03:01.2]} 6. Ndb5 {[%clk 0:03:02.6]} 6... d6 {[%clk
0:03:01.8]} 7. Bg5 {[%clk 0:03:03.2]} 7... a6 {[%clk 0:02:58.7]} 8. Na3 {[%clk
0:03:03.7]} 8... b5 {[%clk 0:02:59.3]} 9. Bxf6 {[%clk 0:03:03.5]} 9... gxf6
{[%clk 0:02:59.4]} 10. Nd5 {[%clk 0:03:04.1]} 10... f5 {[%clk 0:02:59.5]} 11.
Bxb5 {[%clk 0:03:03.3]} 11... axb5 {[%clk 0:02:50.5]} 12. Nxb5 {[%clk 0:03:03]}
12... Ra4 {[%clk 0:02:37.9]} 13. b4 {[%clk 0:03:02.6]} 13... Be6 {[%clk
0:02:11.7]} 14. c3 {[%clk 0:02:47.5]} 14... Ra8 {[%clk 0:01:48.5]} 15. Nbc7+
{[%clk 0:02:35.8]} 15... Kd7 {[%clk 0:01:48.3]} 16. Nxa8 {[%clk 0:02:34.4]}
16... Bxd5 {[%clk 0:01:48.7]} 17. exd5 {[%clk 0:02:33.4]} 17... Qxa8 {[%clk
0:01:28.7]} 18. dxc6+ {[%clk 0:02:31.8]} 18... Qxc6 {[%clk 0:01:29.6]} 19. O-O
{[%clk 0:02:28.9]} 19... Rg8 {[%clk 0:01:28.8]} 20. g3 {[%clk 0:02:28.6]} 20...
f4 {[%clk 0:01:08.7]} 21. Qh5 {[%clk 0:02:27.7]} 21... Rg6 {[%clk 0:00:54.9]}
22. Qxh7 {[%clk 0:02:22.1]} 22... Qc4 {[%clk 0:00:49.3]} 23. Qh3+ {[%clk
0:02:09.9]} 23... Kc7 {[%clk 0:00:43.1]} 24. a4 {[%clk 0:02:09.9]} 24... f3
{[%clk 0:00:26.2]} 25. b5 {[%clk 0:02:04.8]} 25... Qe4 {[%clk 0:00:15.7]} 26.
b6+ {[%clk 0:02:03.3]} 26... Kb8 {[%clk 0:00:12.4]} 27. b7 {[%clk 0:01:58.3]}
27... f5 {[%clk 0:00:07.9]} 28. Qh8 {[%clk 0:01:54.4]} 1-0

[Event "Late-Titled-Tuesday-Blitz-April-30-2024"]
[Site "Chess.com"]
[Date "2024.04.30"]
[Round "2"]
[White "osielchesslover2011"]
[Black "SRob2003"]
[Result "1-0"]
[WhiteElo "2230"]
[BlackElo "2657"]
[TimeControl "180+1"]
[EndTime "14:16:43 PDT"]
[Termination "osielchesslover2011 won by resignation"]

1. e4 {[%clk 0:02:59.8]} 1... c6 {[%clk 0:02:47.2]} 2. d4 {[%clk 0:02:59.8]}
2... d5 {[%clk 0:02:48.1]} 3. Nc3 {[%clk 0:03:00.1]} 3... dxe4 {[%clk
0:02:47.1]} 4. Nxe4 {[%clk 0:03:01]} 4... Bf5 {[%clk 0:02:47.8]} 5. Ng3 {[%clk
0:03:01.1]} 5... Bg6 {[%clk 0:02:48.6]} 6. h4 {[%clk 0:03:01.8]} 6... h6 {[%clk
0:02:49.1]} 7. Nf3 {[%clk 0:03:02.4]} 7... e6 {[%clk 0:02:49.8]} 8. h5 {[%clk
0:03:02.9]} 8... Bh7 {[%clk 0:02:50.3]} 9. Bd3 {[%clk 0:03:03.2]} 9... Bxd3
{[%clk 0:02:50.9]} 10. Qxd3 {[%clk 0:03:04.1]} 10... Nf6 {[%clk 0:02:51.8]} 11.
Bd2 {[%clk 0:03:04.4]} 11... c5 {[%clk 0:02:52.5]} 12. O-O-O {[%clk 0:03:01]}
12... Nc6 {[%clk 0:02:52.2]} 13. Bc3 {[%clk 0:02:53.5]} 13... cxd4 {[%clk
0:02:43.6]} 14. Nxd4 {[%clk 0:02:54.4]} 14... Nxd4 {[%clk 0:02:42.4]} 15. Bxd4
{[%clk 0:02:55.3]} 15... Qc8 {[%clk 0:02:42.3]} 16. Rhe1 {[%clk 0:02:53.8]}
16... Be7 {[%clk 0:02:26.3]} 17. Nf5 {[%clk 0:02:29.8]} 17... Qc7 {[%clk
0:01:00.8]} 18. Nxg7+ {[%clk 0:01:59]} 18... Kf8 {[%clk 0:01:00.4]} 19. Nxe6+
{[%clk 0:01:49.3]} 19... fxe6 {[%clk 0:00:59.8]} 20. Rxe6 {[%clk 0:01:46.6]}
20... Rd8 {[%clk 0:00:37.5]} 21. Qf5 {[%clk 0:01:30.3]} 21... Rxd4 {[%clk
0:00:20.2]} 22. Rxf6+ {[%clk 0:01:22.8]} 22... Bxf6 {[%clk 0:00:13.1]} 23. Qxf6+
{[%clk 0:01:23.7]} 23... Kg8 {[%clk 0:00:11.8]} 24. Rxd4 {[%clk 0:01:24]} 24...
Rh7 {[%clk 0:00:11.8]} 25. Rd8+ {[%clk 0:01:23.3]} 1-0

[Event "Late-Titled-Tuesday-Blitz-April-30-2024"]
[Site "Chess.com"]
[Date "2024.04.30"]
[Round "2"]
[White "Hudijegszid"]
[Black "prxcess_brownie"]
[Result "0-1"]
[WhiteElo "2447"]
[BlackElo "2200"]
[TimeControl "180+1"]
[EndTime "14:16:51 PDT"]
[Termination "prxcess_brownie won by resignation"]

1. Nf3 {[%clk 0:02:30.1]} 1... Nf6 {[%clk 0:02:57.6]} 2. d4 {[%clk 0:02:30.1]}
2... b6 {[%clk 0:02:50.9]} 3. g3 {[%clk 0:02:30.1]} 3... Bb7 {[%clk 0:02:50.3]}
4. Bg2 {[%clk 0:02:30.7]} 4... d5 {[%clk 0:02:49.7]} 5. O-O {[%clk 0:02:30.3]}
5... Nbd7 {[%clk 0:02:49.8]} 6. Nbd2 {[%clk 0:02:30]} 6... e6 {[%clk 0:02:47.2]}
7. b3 {[%clk 0:02:29.8]} 7... Bd6 {[%clk 0:02:45.8]} 8. Bb2 {[%clk 0:02:29.6]}
8... c5 {[%clk 0:02:42.6]} 9. c4 {[%clk 0:02:28.3]} 9... cxd4 {[%clk 0:02:40.6]}
10. Nxd4 {[%clk 0:02:27.5]} 10... O-O {[%clk 0:02:40.2]} 11. e3 {[%clk
0:02:25.1]} 11... Nc5 {[%clk 0:02:38.7]} 12. Qe2 {[%clk 0:02:22]} 12... Rb8
{[%clk 0:02:34.1]} 13. Rac1 {[%clk 0:02:19.9]} 13... Qd7 {[%clk 0:02:29.9]} 14.
Rfd1 {[%clk 0:02:16.5]} 14... Rfd8 {[%clk 0:02:27.9]} 15. Nb5 {[%clk 0:02:06.6]}
15... Bf8 {[%clk 0:02:18.4]} 16. Be5 {[%clk 0:01:53.1]} 16... Ra8 {[%clk
0:02:15.1]} 17. cxd5 {[%clk 0:01:43.3]} 17... Nxd5 {[%clk 0:02:10.7]} 18. Bf4
{[%clk 0:01:21.2]} 18... Nxf4 {[%clk 0:01:52.5]} 19. exf4 {[%clk 0:01:20.3]}
19... Bxg2 {[%clk 0:01:52]} 20. Kxg2 {[%clk 0:01:17.1]} 20... Nd3 {[%clk
0:01:51.7]} 21. Nc3 {[%clk 0:00:51.9]} 21... Nxc1 {[%clk 0:01:48.3]} 22. Rxc1
{[%clk 0:00:44.6]} 22... Qxd2 {[%clk 0:01:47]} 23. Qf1 {[%clk 0:00:43.2]} 23...
Rac8 {[%clk 0:01:44]} 24. Qa6 {[%clk 0:00:34.6]} 24... Qxc1 {[%clk 0:01:40.4]}
25. Nb5 {[%clk 0:00:29.3]} 25... Qc6+ {[%clk 0:01:35.9]} 26. Kh3 {[%clk
0:00:27.3]} 26... Ra8 {[%clk 0:01:31.6]} 27. b4 {[%clk 0:00:18.1]} 27... Bxb4
{[%clk 0:01:27.2]} 28. Na3 {[%clk 0:00:16.8]} 28... Bxa3 {[%clk 0:01:26.5]} 29.
Qa4 {[%clk 0:00:13.9]} 29... Qxa4 {[%clk 0:01:24.9]} 0-1

[Event "Late-Titled-Tuesday-Blitz-April-30-2024"]
[Site "Chess.com"]
[Date "2024.04.30"]
[Round "2"]
[White "flubs"]
[Black "pirulillo"]
[Result "0-1"]
[WhiteElo "2502"]
[BlackElo "2318"]
[TimeControl "180+1"]
[EndTime "14:16:52 PDT"]
[Termination "pirulillo won by resignation"]

1. c4 {[%clk 0:02:59.1]} 1... Nf6 {[%clk 0:02:59.6]} 2. Nc3 {[%clk 0:02:56.5]}
2... g6 {[%clk 0:02:56.8]} 3. g3 {[%clk 0:02:55.4]} 3... Bg7 {[%clk 0:02:56.8]}
4. Bg2 {[%clk 0:02:52.5]} 4... O-O {[%clk 0:02:55.2]} 5. Nf3 {[%clk 0:02:51.8]}
5... d6 {[%clk 0:02:54.9]} 6. O-O {[%clk 0:02:51.2]} 6... e5 {[%clk 0:02:54.9]}
7. d3 {[%clk 0:02:50.2]} 7... Nc6 {[%clk 0:02:51.8]} 8. Rb1 {[%clk 0:02:49.5]}
8... a5 {[%clk 0:02:51.2]} 9. a3 {[%clk 0:02:49.7]} 9... Be6 {[%clk 0:02:49]}
10. b4 {[%clk 0:02:48.7]} 10... axb4 {[%clk 0:02:49.2]} 11. axb4 {[%clk
0:02:49.6]} 11... Qd7 {[%clk 0:02:48.4]} 12. Re1 {[%clk 0:02:48.7]} 12... h6
{[%clk 0:02:47.7]} 13. Bd2 {[%clk 0:02:47.1]} 13... Bh3 {[%clk 0:02:44.6]} 14.
Bh1 {[%clk 0:02:46.3]} 14... Ng4 {[%clk 0:02:42.7]} 15. Nd5 {[%clk 0:02:40.6]}
15... Kh7 {[%clk 0:02:37.7]} 16. b5 {[%clk 0:02:35.6]} 16... Nd8 {[%clk
0:02:36.1]} 17. Qc2 {[%clk 0:02:28.8]} 17... Ne6 {[%clk 0:02:35]} 18. e3 {[%clk
0:02:26.4]} 18... f5 {[%clk 0:02:30.3]} 19. Bc3 {[%clk 0:02:24.5]} 19... Nc5
{[%clk 0:02:23.3]} 20. Nh4 {[%clk 0:02:03.7]} 20... e4 {[%clk 0:02:12.6]} 21.
dxe4 {[%clk 0:01:56.8]} 21... Bxc3 {[%clk 0:02:06.8]} 22. Qxc3 {[%clk
0:01:50.7]} 22... fxe4 {[%clk 0:02:07.7]} 23. Nf4 {[%clk 0:01:35.5]} 23... Ne5
{[%clk 0:01:58.4]} 24. Nxh3 {[%clk 0:01:12.8]} 24... Qxh3 {[%clk 0:01:57.6]} 25.
Bg2 {[%clk 0:01:06.2]} 25... Qe6 {[%clk 0:01:56.6]} 26. Qd4 {[%clk 0:01:00]}
26... Ned3 {[%clk 0:01:51.9]} 27. Rf1 {[%clk 0:00:44.9]} 27... g5 {[%clk
0:01:51.5]} 28. f3 {[%clk 0:00:39.5]} 28... gxh4 {[%clk 0:01:51.3]} 29. fxe4
{[%clk 0:00:39.4]} 29... Ne5 {[%clk 0:01:51]} 30. Rf4 {[%clk 0:00:32.4]} 30...
hxg3 {[%clk 0:01:47.8]} 31. hxg3 {[%clk 0:00:32]} 31... Rg8 {[%clk 0:01:47.8]}
32. Kh2 {[%clk 0:00:25.9]} 32... Ra2 {[%clk 0:01:40.9]} 33. Rbf1 {[%clk
0:00:25.1]} 33... Qg6 {[%clk 0:01:37.2]} 34. g4 {[%clk 0:00:17.5]} 34... Nxg4+
{[%clk 0:01:36]} 35. Kh1 {[%clk 0:00:15.3]} 35... Qh5+ {[%clk 0:01:33.6]} 0-1

[Event "Late-Titled-Tuesday-Blitz-April-30-2024"]
[Site "Chess.com"]
[Date "2024.04.30"]
[Round "2"]
[White "GroovyKettle"]
[Black "Naoki"]
[Result "0-1"]
[WhiteElo "2936"]
[BlackElo "2622"]
[TimeControl "180+1"]
[EndTime "14:16:53 PDT"]
[Termination "Naoki won by resignation"]

1. e4 {[%clk 0:03:00.9]} 1... e5 {[%clk 0:02:58]} 2. Nf3 {[%clk 0:02:58.9]} 2...
Nc6 {[%clk 0:02:56.7]} 3. Bb5 {[%clk 0:02:59.3]} 3... a6 {[%clk 0:02:56.4]} 4.
Ba4 {[%clk 0:02:59.5]} 4... Nf6 {[%clk 0:02:56.7]} 5. d3 {[%clk 0:02:59.7]} 5...
b5 {[%clk 0:02:53.7]} 6. Bb3 {[%clk 0:03:00.1]} 6... Bc5 {[%clk 0:02:54]} 7. Nc3
{[%clk 0:03:00.5]} 7... d6 {[%clk 0:02:40.1]} 8. Nd5 {[%clk 0:02:59.3]} 8... h6
{[%clk 0:02:33.7]} 9. c3 {[%clk 0:02:59.4]} 9... Be6 {[%clk 0:02:05.7]} 10. Be3
{[%clk 0:02:57.3]} 10... Bxe3 {[%clk 0:01:56.1]} 11. Nxe3 {[%clk 0:02:58.2]}
11... d5 {[%clk 0:01:50.3]} 12. O-O {[%clk 0:02:53.9]} 12... O-O {[%clk
0:01:48.5]} 13. Re1 {[%clk 0:02:53.5]} 13... Re8 {[%clk 0:01:47.9]} 14. a4
{[%clk 0:02:50.9]} 14... dxe4 {[%clk 0:01:40.7]} 15. axb5 {[%clk 0:02:42.4]}
15... exf3 {[%clk 0:01:28.3]} 16. bxc6 {[%clk 0:02:38.9]} 16... Bxb3 {[%clk
0:01:25.3]} 17. Qxb3 {[%clk 0:02:38.2]} 17... Qxd3 {[%clk 0:01:25.5]} 18. Rad1
{[%clk 0:02:35.5]} 18... Qg6 {[%clk 0:01:23.5]} 19. g3 {[%clk 0:02:35.5]} 19...
h5 {[%clk 0:01:11.4]} 20. Qc4 {[%clk 0:02:31.8]} 20... Re6 {[%clk 0:01:01.3]}
21. b4 {[%clk 0:02:28]} 21... e4 {[%clk 0:00:50.2]} 22. Rd4 {[%clk 0:02:26.3]}
22... h4 {[%clk 0:00:44.4]} 23. Red1 {[%clk 0:02:23.4]} 23... hxg3 {[%clk
0:00:43]} 24. hxg3 {[%clk 0:02:23.7]} 24... Ng4 {[%clk 0:00:38.9]} 25. Nxg4
{[%clk 0:02:09.2]} 25... Qxg4 {[%clk 0:00:39.1]} 26. Re1 {[%clk 0:01:43]} 26...
Qh3 {[%clk 0:00:36.2]} 27. Qf1 {[%clk 0:01:42.2]} 27... Qxf1+ {[%clk 0:00:33.3]}
28. Kxf1 {[%clk 0:01:38.4]} 28... f5 {[%clk 0:00:33.7]} 29. Rc4 {[%clk
0:01:36.1]} 29... Rd8 {[%clk 0:00:28.5]} 30. Ra1 {[%clk 0:01:32]} 30... Rh6
{[%clk 0:00:27.4]} 31. Kg1 {[%clk 0:01:28.3]} 31... Kf7 {[%clk 0:00:27.2]} 0-1

[Event "Late-Titled-Tuesday-Blitz-April-30-2024"]
[Site "Chess.com"]
[Date "2024.04.30"]
[Round "2"]
[White "Adar_07"]
[Black "kaanadayhamle"]
[Result "1-0"]
[WhiteElo "2706"]
[BlackElo "2404"]
[TimeControl "180+1"]
[EndTime "14:16:55 PDT"]
[Termination "Adar_07 won by resignation"]

1. Nf3 {[%clk 0:03:00.9]} 1... g6 {[%clk 0:02:59.2]} 2. h4 {[%clk 0:02:59.5]}
2... h5 {[%clk 0:02:59.5]} 3. e4 {[%clk 0:02:58.8]} 3... c6 {[%clk 0:02:59.4]}
4. d4 {[%clk 0:02:58]} 4... d5 {[%clk 0:02:59.8]} 5. exd5 {[%clk 0:02:57.8]}
5... cxd5 {[%clk 0:03:00.7]} 6. c4 {[%clk 0:02:56.7]} 6... Nf6 {[%clk
0:02:59.9]} 7. Nc3 {[%clk 0:02:52.3]} 7... Bg7 {[%clk 0:02:59.8]} 8. cxd5 {[%clk
0:02:53]} 8... Nxd5 {[%clk 0:03:00.7]} 9. Bc4 {[%clk 0:02:52.9]} 9... Nxc3
{[%clk 0:03:00.5]} 10. bxc3 {[%clk 0:02:53.4]} 10... Nc6 {[%clk 0:02:54.4]} 11.
Ng5 {[%clk 0:02:48.7]} 11... e6 {[%clk 0:02:52]} 12. Rb1 {[%clk 0:02:36.4]}
12... a6 {[%clk 0:02:39.3]} 13. Be3 {[%clk 0:02:21]} 13... Ne7 {[%clk
0:02:13.5]} 14. g4 {[%clk 0:02:04.6]} 14... hxg4 {[%clk 0:01:27.9]} 15. Qxg4
{[%clk 0:02:05.5]} 15... Nf5 {[%clk 0:01:19.9]} 16. h5 {[%clk 0:02:05.5]} 16...
b5 {[%clk 0:00:29.6]} 17. Qg2 {[%clk 0:01:42.7]} 17... Rb8 {[%clk 0:00:20.5]}
18. hxg6 {[%clk 0:01:42.4]} 18... Rxh1+ {[%clk 0:00:16]} 19. Qxh1 {[%clk
0:01:43.3]} 19... fxg6 {[%clk 0:00:14.7]} 20. Qh7 {[%clk 0:01:39.4]} 20... Nxe3
{[%clk 0:00:13]} 21. Qxg6+ {[%clk 0:01:38.4]} 21... Kd7 {[%clk 0:00:07.1]} 22.
Qxg7+ {[%clk 0:01:34.9]} 22... Kc6 {[%clk 0:00:06.7]} 23. fxe3 {[%clk
0:01:33.3]} 23... Qa5 {[%clk 0:00:06.8]} 24. d5+ {[%clk 0:01:21.1]} 24... exd5
{[%clk 0:00:04.2]} 25. Qf6+ {[%clk 0:01:20.1]} 25... Kc5 {[%clk 0:00:04.3]} 26.
Qd4+ {[%clk 0:01:17.1]} 26... Kc6 {[%clk 0:00:04.4]} 27. Bxd5+ {[%clk
0:01:16.9]} 1-0